fUSD/lending_fUSD_20240508
["ID","MTS","AMOUNT","RATE_DAILY","PERIOD"]
[326646582,1715195066381,-380.56913847,0.00041,60]
[326646583,1715195066447,-3001.76209601,0.00041,120]
[326646584,1715195066514,-1304.78954659,0.00041,30]
[326646585,1715195066700,-1000000.0,0.00041,30]
[326646586,1715195066766,-5000.00307831,0.00041,30]
[326646587,1715195066830,-5000.0,0.00041,120]
[326646588,1715195066895,-5000.0,0.00041,120]
[326646589,1715195066959,-7706.0,0.00041,120]
[326646590,1715195067026,-2000.0,0.00041,30]
[326646591,1715195067094,-1617.0,0.00041,120]
[326646592,1715195067162,-1000.0,0.00041095,60]
[326646593,1715195067247,-1000.0,0.00041095,60]
[326646594,1715195067319,-1000.0,0.00041095,60]
[326646595,1715195067387,-346.00624482,0.00041095,60]
[326646596,1715195067453,-510.0,0.00041095,120]
[326646597,1715195067520,-1000.0,0.00041096,60]
[326646598,1715195067586,-187.32610292,0.000411,120]
[326646599,1715195067653,-232.00247746,0.000411,60]
[326646600,1715195067720,-13716.44582693,0.000411,60]
[326646601,1715195067787,-10000.0,0.000412,30]
[326646602,1715195067861,-505655.0,0.000412,30]
[326646603,1715195067929,-5838.513421,0.00041235,30]
[326646604,1715195067996,-510.0,0.00041369,120]
[326646605,1715195068498,-2122573.85325803,0.00041492,30]
[326646607,1715195078639,-369.57570955,0.0004,60]
[326646608,1715195079329,-4999630.42429045,0.00041492,30]
[326646609,1715195096421,-518.32502057,0.00033,120]
[326646610,1715195099268,-883.00567932,0.000389,30]
[326646611,1715195100036,-155.13980722,0.0004,120]
[326646612,1715195101003,-4998443.52949289,0.00041492,30]
[326646620,1715195442354,-536.8709847,0.00011589,2]
[326646623,1715195442365,-158.24537954,0.00011594,2]
[326646625,1715195442375,-801.0,0.00011694,2]
[326646628,1715195442385,-150.0,0.00012998,2]
[326646630,1715195442394,-144.60858576,0.00012998,2]
[326646634,1715195442407,-5.39141424,0.00012998,2]
[326646637,1715195442418,-596.02261892,0.00013,2]
[326646639,1715195442430,-499.2998041,0.00013,2]
[326646641,1715195442442,-429.29344456,0.00013,2]
[326646643,1715195442479,-25501.45148818,0.00013,2]
[326646644,1715195442489,-3000.0,0.00013,2]
[326646645,1715195442499,-172.28,0.00014826,2]
[326646646,1715195442508,-3939.0,0.000167,2]
[326646647,1715195442518,-488.27506816,0.000167,2]
[326646648,1715195442531,-316.72493184,0.000167,2]
[326646649,1715195442541,-179.6678895,0.00017521,2]
[326646650,1715195442552,-1050.0,0.00018,3]
[326646651,1715195442562,-1388.4116553,0.00018,2]
[326646652,1715195442574,-1611.5883447,0.00018,2]
[326646653,1715195442584,-244.9747628,0.00019089,2]
[326646654,1715195442596,-755.0252372,0.00019089,2]
[326646655,1715195442606,-154.45,0.00019178,2]
[326646656,1715195442616,-161.45,0.00019178,2]
[326646657,1715195442626,-158.17258052,0.0002,2]
[326646658,1715195442636,-809.52464749,0.0002,2]
[326646659,1715195442646,-290.71420182,0.0002,2]
[326646660,1715195442656,-3735.00786065,0.0002,2]
[326646661,1715195442666,-6653.0,0.0002,2]
[326646662,1715195442677,-3950.0,0.0002,2]
[326646663,1715195442687,-2465.50074413,0.0002,2]
[326646664,1715195442697,-2557.35609697,0.0002,2]
[326646665,1715195442706,-2702.85614945,0.00020253,2]
[326646666,1715195442716,-1084.17957934,0.00020253,2]
[326646667,1715195442727,-393.26039802,0.00020253,2]
[326646668,1715195445325,-155.0,0.00011588,2]
[326646670,1715195445335,-2855.33387319,0.00020253,2]
[326646673,1715195445345,-1197.38,0.00020269,2]
[326646674,1715195445355,-184.09,0.00020273,2]
[326646677,1715195445366,-652.54,0.00020317,2]
[326646679,1715195445376,-170.65,0.0002038,2]
[326646680,1715195445385,-178.46,0.00020382,2]
[326646683,1715195445395,-172.94,0.00020405,2]
[326646684,1715195445404,-174.53,0.00020421,2]
[326646687,1715195445414,-168.12,0.00020433,2]
[326646689,1715195445424,-428.68,0.00020516,2]
[326646690,1715195445433,-150.72,0.00020603,2]
[326646692,1715195445443,-868.14,0.00020829,2]
[326646694,1715195445452,-414.79,0.00020877,2]
[326646697,1715195445462,-1780.6,0.00020884,2]
[326646698,1715195445471,-1434.18295248,0.00021,2]
[326646701,1715195445481,-157.35841002,0.00021101,2]
[326646703,1715195445491,-316.1,0.00021178,2]
[326646705,1715195445501,-166.02,0.00021589,15]
[326646707,1715195445511,-300.0,0.00021762,2]
[326646708,1715195445520,-150.0,0.00021776,2]
[326646710,1715195445531,-170.26650294,0.000218,2]
[326646724,1715195445653,-159.0466994,0.000218,2]
[326646726,1715195445663,-200.0,0.000218,2]
[326646728,1715195445675,-159.04669936,0.00021814,2]
[326646730,1715195445701,-200.0,0.00021816,2]
[326646732,1715195445716,-1000.0,0.00021823,2]
[326646734,1715195445726,-1000.0,0.00021823,2]
[326646736,1715195445735,-200.0,0.00021823,2]
[326646738,1715195445745,-200.0,0.00021824,2]
[326646740,1715195445755,-1000.0,0.00021824,2]
[326646742,1715195445764,-500.0,0.00021824,2]
[326646743,1715195445774,-159.04669936,0.00021829,2]
[326646744,1715195445784,-170.26650292,0.00021833,2]
[326646745,1715195445793,-159.04669936,0.00021843,2]
[326646746,1715195445803,-159.04669936,0.00021857,2]
[326646747,1715195445813,-170.26650292,0.00021867,2]
[326646748,1715195445824,-159.04669936,0.00021871,2]
[326646749,1715195445833,-159.04669936,0.00021886,2]
[326646750,1715195445843,-1262.0,0.00021892,2]
[326646751,1715195445852,-36920.0554,0.000219,2]
[326646752,1715195445862,-500.0,0.000219,2]
[326646753,1715195445872,-500.0,0.000219,2]
[326646754,1715195445881,-8044.60237951,0.000219,2]
[326646755,1715195445890,-7500.0,0.000219,2]
[326646756,1715195445899,-10000.0,0.000219,2]
[326646757,1715195445909,-170.26650292,0.000219,2]
[326646758,1715195445919,-158.24537954,0.000219,2]
[326646759,1715195445928,-942.0,0.000219,2]
[326646760,1715195445938,-159.04669936,0.000219,2]
[326646761,1715195445947,-250.0,0.00021918,2]
[326646762,1715195445957,-250.0,0.00021918,2]
[326646763,1715195445966,-157.35841002,0.00021936,2]
[326646764,1715195445976,-150.0,0.00021973,2]
[326646765,1715195445985,-8938.80273523,0.0002198,2]
[326646766,1715195445995,-2228.0,0.0002199,2]
[326646767,1715195446004,-4791.98390896,0.00021998,2]
[326646768,1715195446013,-1978.40158812,0.00021998,2]
[326646769,1715195446023,-365.25367275,0.00021998,2]
[326646770,1715195446033,-168.82364609,0.00021998,2]
[326646771,1715195446042,-3522.25187962,0.00021999,2]
[326646772,1715195446052,-1724.12310572,0.00021999,2]
[326646773,1715195446061,-1585.70936532,0.00021999,2]
[326646774,1715195446071,-2313.62951304,0.00021999,2]
[326646775,1715195446080,-197.05020514,0.00021999,2]
[326646776,1715195446089,-500.0,0.00021999,2]
[326646777,1715195446098,-500.0,0.00021999,2]
[326646778,1715195446108,-500.0,0.00021999,2]
[326646779,1715195446117,-261.15260495,0.00021999,2]
[326646780,1715195446126,-30463.31897534,0.00022,7]
[326646781,1715195446138,-439577.53313031,0.00022,5]
[326646787,1715195931851,-353.94,0.00026738,120]
[326646788,1715195933054,-2030.56443152,0.00027397,30]
[326646789,1715195933670,-338.53062545,0.00028,30]
[326646790,1715195934976,-10000.0,0.00028,30]
[326646791,1715195935573,-900.0,0.00029,30]
[326646792,1715195936662,-353.94,0.00029412,120]
[326646793,1715195937708,-159.49150154,0.00029973,30]
[326646794,1715195938242,-1208.0,0.00029988,30]
[326646795,1715195938401,-1345.25767558,0.0003,30]
[326646796,1715195939093,-159.49150154,0.0003011,30]
[326646797,1715195939765,-385.0,0.00030234,120]
[326646798,1715195941201,-159.49150154,0.00030247,30]
[326646799,1715195943215,-159.49150154,0.00030384,30]
[326646800,1715195944566,-162.81424116,0.00030438,30]
[326646801,1715195948219,-500.0,0.000305,120]
[326646802,1715195948996,-159.49150154,0.00030521,30]
[326646803,1715195949071,-159.49150154,0.00030658,30]
[326646804,1715195949157,-159.49150154,0.00030795,30]
[326646805,1715195949228,-385.0,0.00030827,120]
[326646806,1715195949300,-162.81424116,0.00030877,30]
[326646807,1715195949370,-159.49150154,0.00030932,30]
[326646808,1715195949443,-900.0,0.00031,32]
[326646809,1715195949515,-500.0,0.00031,120]
[326646810,1715195949586,-159.49150154,0.00031068,30]
[326646811,1715195949657,-159.49150154,0.00031205,30]
[326646812,1715195949741,-159.49150154,0.00031342,30]
[326646813,1715195949811,-385.0,0.0003142,120]
[326646814,1715195949881,-159.49150154,0.00031479,30]
[326646815,1715195949950,-500.0,0.000315,120]
[326646816,1715195950022,-159.49150154,0.00031616,30]
[326646817,1715195950092,-159.49150154,0.00031753,30]
[326646818,1715195950181,-500.0,0.00032,120]
[326646819,1715195950259,-10000.0,0.00032,30]
[326646820,1715195950330,-385.0,0.00032012,120]
[326646821,1715195950404,-353.94,0.00032086,120]
[326646822,1715195950490,-500.0,0.000325,120]
[326646823,1715195951260,-385.0,0.00032605,120]
[326646824,1715195952644,-2000.0,0.00032876,90]
[326646825,1715195953930,-2000.0,0.00032876,90]
[326646826,1715195954501,-2000.0,0.00032876,90]
[326646827,1715195955967,-2000.0,0.00032876,90]
[326646828,1715195956857,-2000.0,0.00032876,90]
[326646829,1715195957574,-2000.0,0.00032876,90]
[326646830,1715195958131,-2000.0,0.00032876,90]
[326646831,1715195958197,-2000.0,0.00032876,90]
[326646832,1715195958264,-197.89,0.00032876,90]
[326646833,1715195958354,-750.0,0.00032876,30]
[326646834,1715195958435,-750.0,0.00032876,30]
[326646835,1715195958508,-750.0,0.00032876,30]
[326646836,1715195958580,-750.0,0.00032876,30]
[326646837,1715195958649,-770.96411652,0.00032876,30]
[326646838,1715195958723,-210.28525092,0.000329,30]
[326646839,1715195958917,-500.0,0.00033,120]
[326646840,1715195958985,-385.0,0.00033198,120]
[326646841,1715195959063,-500.0,0.000335,120]
[326646842,1715195959131,-385.0,0.00033791,120]
[326646843,1715195959207,-500.0,0.00034,120]
[326646844,1715195959275,-385.0,0.00034384,120]
[326646845,1715195960353,-500.0,0.000345,120]
[326646846,1715195962010,-385.0,0.00034976,120]
[326646847,1715195962076,-198.68404072,0.00034999,120]
[326646848,1715195962150,-386.95131363,0.00035569,120]
[326646849,1715195962219,-2102.08227525,0.000356,30]
[326646850,1715195962332,-199.27450638,0.0003816,30]
[326646851,1715195962407,-2000.0,0.00038356,120]
[326646852,1715195962475,-2000.0,0.00038356,120]
[326646853,1715195962541,-2000.0,0.00038356,120]
[326646854,1715195962607,-2000.0,0.00038356,120]
[326646855,1715195962676,-2000.0,0.00038356,120]
[326646856,1715195962750,-2000.0,0.00038356,120]
[326646857,1715195964052,-2000.0,0.00038356,120]
[326646858,1715195965092,-2000.0,0.00038356,120]
[326646859,1715195967347,-2000.0,0.00038356,120]
[326646860,1715195969744,-2000.0,0.00038356,120]
[326646861,1715195971124,-359.71805363,0.00038356,120]
[326646862,1715195972116,-1829.74516272,0.000384,33]
[326646863,1715195973100,-883.00567932,0.000389,30]
[326646864,1715195973171,-151.132828,0.000389,31]
[326646865,1715195973247,-1000.0,0.00038904,120]
[326646866,1715195973314,-572.65144699,0.00039417,120]
[326646867,1715195973390,-150.0,0.00039481,120]
[326646868,1715195973473,-3436.61,0.0004,120]
[326646869,1715195973544,-155.0,0.0004,120]
[326646870,1715195973609,-953.63422359,0.0004,90]
[326646871,1715195973675,-313.84357661,0.0004,60]
[326646872,1715195973740,-369.57570955,0.0004,60]
[326646873,1715195973811,-299.50296526,0.0004001,30]
[326646874,1715195973881,-1041.344,0.00040704,30]
[326646875,1715195973950,-500.0,0.00041,60]
[326646876,1715195974015,-479.48486699,0.00041077,120]
[326646877,1715195974200,-510.0,0.00041095,120]
[326646878,1715195974271,-1000.0,0.00041095,60]
[326646879,1715195974343,-1000.0,0.00041095,60]
[326646880,1715195974411,-1000.0,0.00041095,60]
[326646881,1715195975138,-346.00624482,0.00041095,60]
[326646882,1715195975708,-1000.0,0.00041096,60]
[326646883,1715195977396,-232.00247746,0.000411,60]
[326646884,1715195981289,-217.1712302,0.000411,120]
[326646885,1715195983226,-510.0,0.00041369,120]
[326646886,1715195984533,-515.42475462,0.00041492,30]
[326646887,1715195985287,-215.40285468,0.00041492,30]
[326646888,1715195985358,-287.54535466,0.00041492,120]
[326646889,1715195985425,-500.0,0.00041492,30]
[326646890,1715195985489,-1000000.0,0.000415,30]
[326646891,1715195985557,-510.0,0.00041643,120]
[326646892,1715195985622,-1199.999999,0.00041654,31]
[326646893,1715195985690,-1200.0,0.00041852,30]
[326646894,1715195985756,-220.9467446,0.00041869,40]
[326646895,1715195985822,-221.62907344,0.00041869,40]
[326646896,1715195985891,-401.20318055,0.00041869,40]
[326646897,1715195985960,-2314.88131117,0.00041869,40]
[326646898,1715195986031,-1110.0,0.0004187,120]
[326646899,1715195986097,-598.07288725,0.00041917,120]
[326646900,1715195986165,-406.0,0.00041986,120]
[326646901,1715195986232,-2796.81194395,0.00041989,44]
[326646902,1715195986303,-3887817.83969109,0.00041992,30]
[326646907,1715196640789,-150.0,0.00011998,2]
[326646908,1715196640800,-300.0,0.00011998,2]
[326646909,1715196640810,-150.0,0.00011998,2]
[326646910,1715196640820,-3130.0,0.00011999,2]
[326646911,1715196641229,-5229.13953205,0.00011999,2]
[326646912,1715196641240,-9066.53122414,0.00012,2]
[326646914,1715196641253,-2370.22497806,0.00012,2]
[326646917,1715196641267,-3576.67223655,0.00012,2]
[326646918,1715196641278,-210.0,0.00013198,2]
[326646919,1715196641295,-166.15,0.00014826,2]
[326646920,1715196641306,-1500.0,0.00014826,2]
[326646921,1715196641317,-3933.0,0.00017,2]
[326646922,1715196641328,-1050.0,0.00018,3]
[326646923,1715196641341,-153.50647519,0.00018348,2]
[326646925,1715196641352,-277.85,0.00019178,2]
[326646927,1715196641362,-1100.0,0.0002,3]
[326646929,1715196641372,-2404.14628822,0.00020075,2]
[326646955,1715196643145,-200.0,0.00020058,2]
[326646959,1715196643156,-11899.00013368,0.00020075,2]
[326646963,1715196643168,-5598.05822436,0.00020075,2]
[326647013,1715196646574,-941.70535374,0.00020075,2]
[326647014,1715196646584,-522.03,0.00020083,2]
[326647015,1715196646593,-1110.53310643,0.00020103,2]
[326647016,1715196646605,-1237.72499995,0.00020103,2]
[326647017,1715196646616,-3602.93189362,0.00020103,2]
[326647018,1715196646625,-250.0,0.00020111,2]
[326647019,1715196646635,-184.09,0.00020119,2]
[326647020,1715196646645,-3080.5,0.00020119,2]
[326647021,1715196646654,-187.18,0.00020123,2]
[326647022,1715196646664,-779.77,0.00020126,2]
[326647023,1715196646673,-589.73,0.00020134,2]
[326647024,1715196646682,-3577.1,0.00020176,2]
[326647025,1715196646691,-159.16,0.00020246,2]
[326647026,1715196646701,-245.31,0.00020248,2]
[326647027,1715196646710,-1983.53,0.0002028,2]
[326647028,1715196646719,-150.0,0.00020466,2]
[326647029,1715196646730,-150.0,0.00020466,2]
[326647030,1715196646739,-354.9,0.00020466,2]
[326647031,1715196646748,-523.13,0.00020466,2]
[326647032,1715196646757,-163.18,0.00020466,2]
[326647033,1715196646766,-150.0,0.00020466,2]
[326647034,1715196646775,-523.13,0.00020466,2]
[326647035,1715196646785,-351.19,0.00020466,2]
[326647036,1715196646794,-162.94,0.00020466,2]
[326647037,1715196646803,-523.13,0.00020466,2]
[326647038,1715196646812,-176.37,0.0002067,2]
[326647039,1715196646821,-200.0,0.00021,7]
[326647040,1715196646831,-500.0,0.000211,7]
[326647041,1715196646842,-523.13,0.00021178,2]
[326647042,1715196646852,-700.0,0.000212,7]
[326647043,1715196646861,-150.0,0.00021288,2]
[326647044,1715196646879,-350.14,0.00021288,2]
[326647045,1715196646889,-1000.0,0.000213,7]
[326647046,1715196646899,-159.16,0.00021301,2]
[326647047,1715196646909,-164.22,0.00021375,2]
[326647048,1715196646918,-353.94,0.00021391,2]
[326647049,1715196646928,-1200.0,0.000214,7]
[326647050,1715196646937,-164.22,0.00021411,2]
[326647051,1715196646947,-164.22,0.00021447,2]
[326647052,1715196646956,-164.22,0.00021482,2]
[326647053,1715196646965,-200.0,0.000215,7]
[326647054,1715196646975,-301.91,0.00021562,2]
[326647055,1715196646984,-152.18,0.00021589,15]
[326647056,1715196646993,-200.0,0.000216,7]
[326647059,1715196647096,-200.0,0.000217,7]
[326647060,1715196647110,-200.0,0.000218,7]
[326647061,1715196647120,-367.621,0.000218,2]
[326647062,1715196647130,-200.0,0.00021823,2]
[326647063,1715196647140,-200.0,0.00021824,2]
[326647064,1715196647150,-1000.0,0.00021824,2]
[326647065,1715196647159,-500.0,0.00021824,2]
[326647066,1715196647168,-200.0,0.00021824,2]
[326647067,1715196647178,-216.008364,0.00021889,2]
[326647068,1715196647190,-19826.6906,0.00021898,2]
[326647069,1715196647199,-500.0,0.000219,2]
[326647070,1715196647208,-700.0,0.000219,7]
[326647071,1715196647218,-10000.0,0.000219,2]
[326647072,1715196647227,-681.8479,0.000219,2]
[326647073,1715196647236,-1000.0,0.000219,2]
[326647074,1715196647245,-942.35775827,0.000219,2]
[326647075,1715196647255,-7500.0,0.000219,2]
[326647076,1715196647263,-2075.80065417,0.000219,2]
[326647077,1715196647273,-1367.8917207,0.000219,2]
[326647079,1715196647282,-2500.0,0.000219,2]
[326647081,1715196647290,-250.0,0.00021918,2]
[326647082,1715196647300,-250.0,0.00021918,2]
[326647084,1715196647309,-168.0,0.0002198,15]
[326647086,1715196647319,-150.5,0.0002199,15]
[326647088,1715196647328,-155.35175922,0.00021998,2]
[326647089,1715196647337,-405.31529438,0.00021998,2]
[326647091,1715196647348,-7505.26883546,0.00021998,2]
[326647092,1715196647357,-155.08902383,0.00021998,2]
[326647093,1715196647367,-244.46873844,0.00021999,2]
[326647094,1715196647376,-2174.30309,0.00021999,2]
[326647095,1715196647385,-1241.0,0.00022,2]
[326647096,1715196647394,-15231.65948767,0.00022,7]
[326647097,1715196647408,-187638.60365461,0.00022,5]
[326647098,1715196647422,-917.77812141,0.00022,5]
[326647099,1715196647434,-31050.0,0.00022,5]
[326647100,1715196647445,-633.84,0.00022,5]
[326647101,1715196647457,-1879.87798917,0.00022,5]
[326647102,1715196647473,-284.51111494,0.00022,5]
[326647103,1715196647484,-10975.56386733,0.00022,5]
[326647104,1715196647495,-670.92305894,0.00022,5]
[326647105,1715196647508,-46918.38646967,0.00022,5]
[326647106,1715196650422,-355.3435392,0.00022,5]
[326647107,1715196650434,-3118.025,0.00022,5]
[326647108,1715196650446,-4813.56562729,0.00022,5]
[326647116,1715196998965,-2258.71037641,0.00011676,2]
[326647117,1715197003228,-155.0,0.00011775,2]
[326647118,1715197004461,-155.0,0.00011775,2]
[326647119,1715197005802,-155.0,0.00011775,2]
[326647120,1715197007167,-488.22135213,0.00011775,2]
[326647121,1715197009149,155.0,0.00011774,2]
[326647122,1715197012712,-259.50602993,0.00011776,2]
[326647124,1715197313537,-500.0,0.00010583,2]
[326647125,1715197353805,-528.05763864,0.00010581,2]
[326647126,1715197354595,-155.0,0.00010582,2]
[326647127,1715197355373,-185.3229922,0.00010583,2]
[326647128,1715197355400,-150.0,0.00010583,2]
[326647129,1715197355426,-4482.61936916,0.00010583,2]
[326647130,1715197453740,-8359.13953205,9.522e-05,2]
[326647131,1715197455622,-2183.43778436,9.523e-05,2]
[326647132,1715197455648,-642.57733329,9.523e-05,2]
[326647133,1715197455674,-524.90314028,9.524e-05,2]
[326647134,1715197455699,-423.30130281,9.525e-05,2]
[326647135,1715197455726,-784.79586904,0.00010583,2]
[326647136,1715197455752,-399.85245171,0.00010583,2]
[326647137,1715197455777,-281.99258646,0.00011774,2]
[326647138,1715197502490,-423.3,0.00010597,2]
[326647139,1715197627073,-220.5413736,9.535e-05,2]
[326647140,1715197628701,-539.72354301,9.536e-05,2]
[326647141,1715197629490,-423.30130281,9.537e-05,2]
[326647142,1715197629918,-220.5413736,0.00010597,2]
[326647143,1715197630042,-179.31107811,0.00010597,2]
[326647144,1715197630052,-360.4124649,0.00011773,2]
[326647145,1715197630188,-423.30130281,0.00011773,2]
[326647146,1715197630288,-254.86756116,0.00011773,2]
[326647153,1715197837022,-300.6296171,9.537e-05,2]
[326647158,1715197837037,-213.14093376,9.537e-05,2]
[326647162,1715197837046,-249.74588947,0.00010597,2]
[326647165,1715197837056,-534.98561017,0.00011765,2]
[326647169,1715197837068,-3670.12398792,0.00011765,2]
[326647172,1715197837080,-1673.69726498,0.00011765,2]
[326647175,1715197837091,-2480.33266898,0.00011765,2]
[326647177,1715197837101,-47457.28798225,0.00011766,2]
[326647179,1715197837110,-163.15,0.00011766,2]
[326647181,1715197837120,-103.15196188,0.00011774,2]
[326647183,1715197837130,-653.35879553,0.00011774,2]
[326647185,1715197837140,-4265.45688155,0.00011774,2]
[326647187,1715197837150,-2178.12433568,0.00011774,2]
[326647189,1715197837163,-483.98943635,0.00011774,2]
[326647191,1715197837172,-202.76260644,0.00011774,2]
[326647193,1715197837187,-522.21083759,0.00011775,2]
[326647195,1715197837196,-242.83195764,0.00011775,2]
[326647197,1715197837206,-225028.49512567,0.00011776,2]
[326647199,1715197837218,-6808.3479369,0.00011776,2]
[326647201,1715197837229,-261.15578167,0.00011776,2]
[326647203,1715197837242,-642.3977412,0.00011776,2]
[326647206,1715197837254,-1275.75232492,0.00011776,2]
[326647207,1715197837266,-456.76620795,0.00011776,2]
[326647209,1715197837277,-850.0,0.00011776,2]
[326647211,1715197837288,-564.72049553,0.00011776,2]
[326647213,1715197837301,-18689.70909248,0.00011776,2]
[326647215,1715197837313,-8399.83035407,0.00011776,2]
[326647217,1715197837326,-397.56791311,0.00011776,2]
[326647218,1715197837337,-455.94522447,0.00011776,2]
[326647219,1715197837349,-5611.57327231,0.00011776,2]
[326647220,1715197837362,-30832.3344385,0.00011776,2]
[326647221,1715197837373,-1812.60145938,0.00011776,2]
[326647222,1715197837386,-456.22198162,0.00011776,2]
[326647223,1715197837398,-4121.07153573,0.00011776,2]
[326647224,1715197837415,-11373.03455129,0.00011776,2]
[326647305,1715197841523,-1438.40882084,0.00011776,2]
[326647306,1715197841962,-580.55865504,0.00011776,2]
[326647307,1715197841974,-2481.26025677,0.00011776,2]
[326647308,1715197841988,-123407.7530613,0.00011776,2]
[326647309,1715197841999,-324.42510247,0.00011777,2]
[326647310,1715197842009,-1246.7007135,0.00011884,2]
[326647311,1715197842019,-4988.47691133,0.00011888,2]
[326647312,1715197842028,-9847.92,0.00011888,2]
[326647313,1715197842038,-499.99,0.00011888,2]
[326647314,1715197842047,-6060.16,0.00011888,2]
[326647315,1715197842058,-551.9,0.00011888,2]
[326647316,1715197842067,-625.27,0.00011888,2]
[326647317,1715197842077,-6224.829415,0.00012,2]
[326647318,1715197842087,-250.0,0.0001222,2]
[326647319,1715197842096,-2836.92480769,0.00012461,2]
[326647320,1715197842108,-1234.12701109,0.00012461,2]
[326647321,1715197842119,-3004.25818122,0.00012461,2]
[326647322,1715197842128,-150.99,0.00012461,2]
[326647323,1715197842137,-8283.16,0.00012461,2]
[326647324,1715197842147,-2332.2,0.00012547,2]
[326647325,1715197842157,-1000.0,0.00012578,2]
[326647326,1715197842168,-292.51131525,0.00012938,2]
[326647327,1715197842177,-270.07013621,0.00012998,2]
[326647328,1715197842188,-13.22311078,0.00012998,2]
[326647329,1715197842197,-482.82729485,0.00012999,2]
[326647330,1715197842208,-186.21914621,0.00012999,2]
[326647331,1715197842217,-4933.06831111,0.00013,2]
[326647332,1715197842229,-982.76006447,0.00013,2]
[326647333,1715197842241,-100940.42288431,0.00013,2]
[326647334,1715197842253,-14421.0082605,0.00013,2]
[326647335,1715197842265,-60182.91882332,0.00013,2]
[326647336,1715197842276,-761.75219466,0.00013,2]
[326647337,1715197842288,-47497.15830619,0.00013,2]
[326647338,1715197842299,-27191.22599672,0.00013,2]
[326647339,1715197842310,-1488.679186,0.00013,2]
[326647340,1715197842323,-850.24097084,0.00013,2]
[326647345,1715197842333,-6241.32019456,0.00013,2]
[326647347,1715197842345,-5694.45398716,0.00013,2]
[326647351,1715197842356,-3990.39052706,0.00013,2]
[326647355,1715197842367,-903.55095595,0.00013,2]
[326647359,1715197842381,-518.40021227,0.00013,2]
[326647362,1715197842392,-408.75323981,0.00013,2]
[326647368,1715197842403,-708.73675096,0.00013,2]
[326647371,1715197842417,-919.26358847,0.00013,2]
[326647375,1715197842428,-1033.7,0.00013,2]
[326647378,1715197842439,-53617.2451586,0.00013,2]
[326647381,1715197842453,-547.43728168,0.00013,2]
[326647385,1715197842464,-558.15546194,0.00013,2]
[326647388,1715197842476,-1266.60175907,0.00013,2]
[326647390,1715197842488,-1361.03592768,0.00013,2]
[326647391,1715197843623,-22118.25319622,0.00013,2]
[326647392,1715197843635,-169382.25898175,0.00013,2]
[326647393,1715197843643,-688.20222891,0.00013038,2]
[326647394,1715197843652,-315.29,0.00013352,2]
[326647395,1715197843663,-315.29,0.00013389,2]
[326647396,1715197843676,-315.29,0.00013425,2]
[326647397,1715197843685,-315.29,0.00013462,2]
[326647398,1715197843694,-315.29,0.00013498,2]
[326647399,1715197843705,-315.29,0.00013535,2]
[326647400,1715197843715,-315.29,0.00013572,2]
[326647401,1715197843724,-315.29,0.00013608,2]
[326647402,1715197843733,-315.29,0.00013645,2]
[326647403,1715197843742,-1500.0,0.00013649,2]
[326647404,1715197843751,-315.29,0.00013682,2]
[326647405,1715197843760,-315.29,0.00013718,2]
[326647406,1715197843769,-315.29,0.00013755,2]
[326647407,1715197843779,-315.29,0.00013792,2]
[326647408,1715197843788,-315.29,0.00013828,2]
[326647409,1715197843797,-315.29,0.00013865,2]
[326647410,1715197843807,-315.29,0.00013901,2]
[326647411,1715197843816,-315.29,0.00013938,2]
[326647412,1715197843825,-315.29,0.00013975,2]
[326647413,1715197843834,-315.29,0.00014011,2]
[326647414,1715197843843,-315.29,0.00014048,2]
[326647415,1715197843852,-1000.0,0.00014151,2]
[326647416,1715197843861,-184.09,0.00014826,2]